bitfinex/quotes_BTCUSD_20240828
["timestamp","ask_amount","ask_price","bid_price","bid_amount"]
[1724852484824,0.167047,59864.0,59863.0,0.00142]
[1724852484825,0.835227,59864.0,59863.0,0.00142]
[1724852485042,0.835227,59864.0,59863.0,0.01803907]
[1724852485043,0.501137,59864.0,59863.0,0.01803907]
[1724852485256,0.167057,59860.0,59855.0,0.167068]
[1724852485467,0.33409,59864.0,59856.0,0.167065]
[1724852485684,0.16706,59859.0,59856.0,0.0159894]
[1724852485898,0.167062,59858.0,59856.0,0.0159894]
[1724852486117,0.334085,59865.0,59852.0,0.08044119]
[1724852486345,0.167055,59861.0,59857.0,0.0159894]
[1724852486558,0.167055,59861.0,59853.0,0.334151]
[1724852486776,0.167053,59862.0,59857.0,0.167063]
[1724852487052,0.173046,59864.0,59854.0,0.0159894]
[1724852487285,0.173046,59864.0,59857.0,0.167063]
[1724852487286,0.16705,59863.0,59857.0,0.167063]
[1724852487496,0.02618933,59861.0,59858.0,0.16706]
[1724852487718,0.02618933,59861.0,59860.0,0.167056]
[1724852487943,0.02618933,59861.0,59860.0,0.91838]
[1724852488161,0.50540786,59890.0,59860.0,0.91838]
[1724852488162,0.395304,59880.0,59867.0,0.501109]
[1724852488372,0.07428031,59885.0,59867.0,0.0831]
[1724852488582,0.0613,59885.0,59868.0,0.00334026]
[1724852488792,0.0613,59885.0,59867.0,0.0831]
[1724852488793,0.02618414,59868.0,59867.0,0.250136]
[1724852489009,0.167028,59870.0,59869.0,0.0159894]
[1724852489219,0.334024,59876.0,59867.0,0.0831]
[1724852489220,0.167023,59872.0,59867.0,0.250136]
[1724852489429,0.334024,59876.0,59867.0,0.250136]
[1724852489430,0.02618405,59868.0,59867.0,0.0831]
[1724852489849,0.02618405,59868.0,59867.0,0.250136]
[1724852490283,0.02618405,59868.0,59867.0,0.0831]
[1724852490495,0.02618405,59868.0,59863.0,0.334091]
[1724852490948,0.02718405,59868.0,59855.0,0.334136]
[1724852491168,0.02718405,59868.0,59851.0,0.798]
[1724852491169,0.02818405,59868.0,59867.0,0.167036]
[1724852491385,0.02818405,59868.0,59867.0,0.247536]
[1724852491899,0.02818405,59868.0,59859.0,0.0009009]
[1724852491900,0.02818405,59868.0,59861.0,0.0805]
[1724852492135,0.001,59868.0,59867.0,0.59490899]
[1724852492362,0.02618184,59874.0,59873.0,0.50106]
[1724852492571,0.02618184,59874.0,59873.0,0.9283]
[1724852492785,0.50540786,59894.0,59874.0,0.0829]
[1724852493007,0.065619,59895.0,59888.0,0.165977]
[1724852493008,0.166965,59893.0,59888.0,0.165977]
[1724852493219,0.11513719,59895.0,59888.0,0.165977]
[1724852493220,0.167787,59892.0,59888.0,0.165977]
[1724852493429,0.000819,59892.0,59890.0,0.166972]
[1724852493888,0.000819,59892.0,59888.0,0.166976]
[1724852494111,0.000819,59892.0,59889.0,0.166975]
[1724852494322,0.001819,59892.0,59889.0,0.166975]
[1724852494604,0.001819,59892.0,59888.0,0.001]
[1724852494605,0.168786,59892.0,59888.0,0.001]
[1724852494882,0.834877,59889.0,59888.0,0.001]
[1724852495106,1.168828,59889.0,59888.0,0.001]
[1724852495338,1.19500792,59889.0,59888.0,0.003]
[1724852495825,0.86105692,59889.0,59888.0,0.001]
[1724852496058,0.36013092,59889.0,59880.0,0.166999]
[1724852496307,0.36013092,59889.0,59878.0,0.33401]
[1724852496534,0.36013092,59889.0,59881.0,0.01514905]
[1724852496764,0.166989,59885.0,59880.0,0.166999]
[1724852496994,0.333964,59887.0,59871.0,0.411349]
[1724852496995,0.166993,59883.0,59876.0,0.334021]
[1724852497244,0.166991,59884.0,59881.0,0.01514905]
[1724852497458,0.166991,59884.0,59880.0,0.002]
[1724852497459,0.333968,59886.0,59880.0,0.002]
[1724852497679,0.19316874,59884.0,59880.0,0.002]
[1724852497894,0.02617874,59884.0,59881.0,0.01514892]
[1724852498372,0.19316874,59884.0,59881.0,0.01514892]
[1724852498592,0.02617874,59884.0,59883.0,0.242692]
[1724852498802,0.02617874,59884.0,59883.0,0.9252994]
[1724852499018,0.02617874,59884.0,59883.0,1.2592834]
[1724852499249,0.02617874,59884.0,59883.0,1.27109292]
[1724852499724,0.02717874,59884.0,59883.0,1.27109292]
[1724852499961,0.02617874,59884.0,59883.0,1.27109292]
[1724852500183,0.02717874,59884.0,59883.0,1.28109292]
[1724852500393,0.02817874,59884.0,59883.0,1.28409292]
[1724852500622,0.02817874,59884.0,59883.0,1.61807692]
[1724852500840,0.000819,59892.0,59891.0,0.926847]
[1724852501104,0.000819,59892.0,59891.0,1.594725]
[1724852501317,0.000819,59892.0,59891.0,1.61956094]
[1724852501960,0.000819,59892.0,59891.0,1.62156093]
[1724852502840,0.001819,59892.0,59891.0,1.62956093]
[1724852503071,0.001819,59892.0,59891.0,1.63556093]
[1724852503297,0.001819,59892.0,59891.0,1.8270217]
[1724852503525,0.001819,59892.0,59891.0,1.8210217]
[1724852503836,0.001819,59892.0,59891.0,3.7548997]
[1724852504075,0.00082,59909.0,59908.0,0.166922]
[1724852504298,0.00082,59909.0,59908.0,1.168457]
[1724852504513,0.00082,59909.0,59908.0,1.18284639]
[1724852504989,0.00082,59909.0,59908.0,1.19414639]
[1724852505218,0.00082,59909.0,59908.0,1.25924639]
[1724852505670,0.00082,59909.0,59908.0,1.59309139]
[1724852505892,0.00082,59909.0,59908.0,1.27124638]
[1724852506110,0.00082,59909.0,59908.0,1.26924639]
[1724852506346,0.00182,59909.0,59908.0,1.28324639]
[1724852506569,0.00182,59909.0,59908.0,1.28724639]
[1724852507035,0.00182,59909.0,59908.0,1.29224639]
[1724852507276,0.00182,59909.0,59908.0,1.27824639]
[1724852507536,0.00182,59909.0,59908.0,1.28024638]
[1724852507751,0.00182,59909.0,59908.0,1.27824639]
[1724852507974,0.00082,59909.0,59908.0,1.25924639]
[1724852508175,0.00082,59909.0,59908.0,1.26424639]
[1724852508341,0.00082,59909.0,59908.0,1.25924639]
[1724852508570,0.00082,59909.0,59908.0,1.27324639]
[1724852508857,0.00082,59909.0,59908.0,1.29224639]
[1724852509022,0.00082,59909.0,59908.0,1.28724639]
[1724852509225,0.00082,59909.0,59908.0,1.27824639]
[1724852509422,0.00082,59909.0,59908.0,1.27324639]
[1724852509637,0.00082,59909.0,59908.0,1.29224639]
[1724852509978,0.00082,59909.0,59908.0,1.28724639]
[1724852510214,0.00082,59909.0,59908.0,1.27324639]
[1724852510444,0.00082,59909.0,59908.0,1.29224639]
[1724852510642,0.00082,59909.0,59908.0,1.63109139]
[1724852511708,0.00082,59909.0,59908.0,1.61709139]
[1724852511847,0.00082,59909.0,59908.0,1.63109139]
[1724852512241,0.00082,59909.0,59908.0,1.61709139]
[1724852513308,0.00082,59909.0,59908.0,1.27324639]
[1724852513512,0.00082,59909.0,59908.0,1.29224639]
[1724852513878,0.00082,59909.0,59908.0,1.28724639]
[1724852514234,0.00082,59909.0,59908.0,1.27324639]
[1724852514438,0.00082,59909.0,59908.0,1.28724639]
[1724852514633,0.00082,59909.0,59908.0,1.29224639]
[1724852515059,0.00082,59909.0,59908.0,1.31341039]
[1724852515280,0.00082,59909.0,59908.0,1.28724639]
[1724852515477,0.00082,59909.0,59908.0,1.29224639]
[1724852515692,0.00082,59909.0,59908.0,1.28724639]
[1724852515916,0.00082,59909.0,59908.0,0.52915639]
[1724852516127,0.00082,59909.0,59908.0,0.54315639]
[1724852516403,0.00082,59909.0,59908.0,0.87700139]
[1724852516810,0.00082,59909.0,59908.0,0.84900139]
[1724852517071,0.00082,59909.0,59908.0,0.01438939]
[1724852517284,0.00082,59909.0,59908.0,0.02838939]
[1724852517285,0.06352,59909.0,59908.0,0.02838939]
[1724852517497,0.06352,59909.0,59908.0,0.014]
[1724852517734,0.06352,59909.0,59908.0,0.52646698]
[1724852517968,0.00082,59909.0,59908.0,1.52800198]
[1724852518195,1e-08,59909.0,59908.0,1.53000197]
[1724852518436,1e-08,59909.0,59908.0,1.97024697]
[1724852518647,1e-08,59909.0,59908.0,1.95624697]
[1724852518866,0.02616399,59913.0,59912.0,1.25277699]
[1724852519084,0.02616399,59913.0,59912.0,1.584599]
[1724852519319,0.02616399,59913.0,59912.0,1.59637008]
[1724852519777,0.02616399,59913.0,59912.0,2.10365285]
[1724852519998,0.04974635,59924.0,59923.0,0.27087999]
[1724852520229,0.04974635,59924.0,59923.0,0.89610176]
[1724852520483,0.00819,59948.0,59944.0,0.90981]
[1724852520712,0.00819,59948.0,59944.0,1.243454]
[1724852520941,0.00819,59948.0,59944.0,1.577098]
[1724852521172,0.00819,59948.0,59944.0,1.58858136]
[1724852521388,0.00819,59948.0,59944.0,1.60058135]
[1724852522502,0.00819,59948.0,59944.0,1.61258136]
[1724852522804,0.00819,59948.0,59944.0,1.62658136]
[1724852522991,0.00819,59948.0,59944.0,1.59858136]
[1724852523219,0.00819,59948.0,59944.0,1.62658136]
[1724852523442,0.00819,59948.0,59944.0,1.28293736]
[1724852523689,0.00819,59948.0,59944.0,1.28046483]
[1724852523933,0.00819,59948.0,59944.0,2.2312136]
[1724852524195,0.000818,59964.0,59944.0,2.2312136]
[1724852524196,0.000818,59964.0,59955.0,0.18379099]
[1724852524406,0.000818,59964.0,59962.0,0.92285999]
[1724852524632,0.000818,59964.0,59962.0,2.1956167]
[1724852524859,0.00819,59970.0,59968.0,0.85077699]
[1724852525085,0.0082,59977.0,59973.0,0.51722399]
[1724852525315,0.0807,59999.0,59983.0,0.92186699]
[1724852525316,0.0004,59999.0,59983.0,0.92186699]
[1724852525530,0.50540786,59997.0,59983.0,2.23490876]
[1724852525777,0.0004,59999.0,59983.0,2.23490876]
[1724852525778,0.0004,59999.0,59983.0,2.28869804]
[1724852526009,0.0004,59999.0,59998.0,1.26020399]
[1724852526231,0.0004,59999.0,59998.0,1.76200876]
[1724852526457,0.0004,59999.0,59998.0,1.86937085]
[1724852527129,0.0004,59999.0,59998.0,2.55538945]
[1724852527352,0.0004,59999.0,59998.0,2.62544434]
[1724852527574,0.1,60006.0,60005.0,1.59847199]
[1724852527788,0.1,60006.0,60005.0,1.88993276]
[1724852528018,0.1,60006.0,60005.0,1.944264]
[1724852528244,0.075,60006.0,60005.0,1.944264]
[1724852528480,0.1,60007.0,60006.0,1.23322988]
[1724852528708,0.00819,60015.0,60014.0,1.18651159]
[1724852528937,0.00819,60015.0,60014.0,2.19708236]
[1724852529195,0.02611798,60031.0,60029.0,1.59507659]
[1724852529416,0.0119613,60036.0,60029.0,2.23100936]
[1724852529634,0.0119613,60036.0,60035.0,1.18298599]
[1724852529858,0.0119613,60036.0,60035.0,1.47444676]
[1724852530083,0.0004,60059.0,60058.0,0.499516]
[1724852530304,0.07459,60067.0,60066.0,0.49945]
[1724852530514,0.00819,60067.0,60066.0,0.49945]
[1724852530756,0.00819,60067.0,60056.0,0.00199999]
[1724852530757,0.030798,60080.0,60056.0,0.00199999]
[1724852530993,0.02610078,60067.0,60066.0,0.49945]
[1724852531263,0.030798,60080.0,60062.0,0.00199999]
[1724852531464,0.0004,60099.0,60084.0,0.332862]
[1724852531465,0.333188,60099.0,60084.0,0.332862]
[1724852531736,0.01742554,60096.0,60084.0,0.332862]
[1724852531956,0.02609733,60088.0,60087.0,0.832123]
[1724852532204,0.02609733,60088.0,60087.0,0.499273]
[1724852532441,0.02609733,60088.0,60087.0,0.832123]
[1724852532681,0.02609733,60088.0,60073.0,0.3463746]
[1724852532682,0.02609733,60088.0,60074.0,0.00199999]
[1724852532938,0.02609733,60088.0,60087.0,0.499275]
[1724852533413,0.02609733,60088.0,60087.0,0.832125]
[1724852533652,0.02609733,60088.0,60087.0,0.513275]
[1724852533885,0.02609733,60088.0,60087.0,0.180425]
[1724852534151,0.02609733,60088.0,60087.0,0.513275]
[1724852534595,0.02609733,60088.0,60087.0,0.499275]
[1724852534826,0.02609733,60088.0,60087.0,0.832125]
[1724852535880,0.02609733,60088.0,60087.0,0.166425]
[1724852536124,0.02609733,60088.0,60087.0,0.180425]
[1724852536474,0.02609733,60088.0,60081.0,0.33288]
[1724852536641,0.02609733,60088.0,60087.0,0.166425]
[1724852536851,0.02609733,60088.0,60087.0,0.180425]
[1724852537065,0.02609733,60088.0,60087.0,0.513275]
[1724852537278,0.02609733,60088.0,60087.0,0.832125]
[1724852537721,0.02609733,60088.0,60087.0,1.164975]
[1724852537941,0.0119613,60097.0,60096.0,0.832]
[1724852538161,0.0119613,60097.0,60085.0,0.332857]
[1724852538403,0.03805014,60097.0,60081.0,0.014]
[1724852538622,0.03805014,60097.0,60084.0,0.04976721]
[1724852538858,0.03805014,60097.0,60081.0,0.014]
[1724852538859,0.01811501,60097.0,60081.0,0.014]
[1724852539139,0.03868595,60097.0,60071.0,0.50540786]
[1724852539381,1e-08,60101.0,60087.0,0.014]
[1724852539382,0.166422,60088.0,60087.0,0.014]
[1724852539883,0.166444,60081.0,60076.0,0.04905088]
[1724852540116,0.332875,60083.0,60076.0,0.04905088]
[1724852540117,0.166445,60080.0,60076.0,0.04905088]
[1724852540342,0.166445,60080.0,60070.0,0.33294]
[1724852540343,0.002,60087.0,60055.0,0.4755]
[1724852540564,0.123,60091.0,60067.0,0.04917074]
[1724852540777,0.123,60091.0,60056.0,0.00332934]
[1724852540778,0.123,60091.0,60069.0,0.332949]
[1724852541008,0.005,60102.0,60054.0,0.98557986]
[1724852541009,0.1,60103.0,60088.0,0.166421]
[1724852541242,0.01741296,60116.0,60078.0,0.332896]
[1724852541243,0.002,60099.0,60078.0,0.332896]
[1724852541473,0.332833,60091.0,60073.0,0.332926]
[1724852541723,0.332833,60091.0,60069.0,0.166473]
[1724852541724,0.332912,60076.0,60069.0,0.166473]
[1724852541936,0.08,60088.0,60070.0,0.50540786]
[1724852542181,0.08,60088.0,60073.0,0.21580851]
[1724852542182,0.166448,60079.0,60073.0,0.21580851]
[1724852542418,0.08,60088.0,60073.0,0.21580751]
[1724852542645,0.0629,60089.0,60083.0,0.332872]
[1724852542872,0.0629,60089.0,60088.0,0.499267]
[1724852543122,0.0629,60089.0,60073.0,0.04912753]
[1724852543357,0.16638,60104.0,60077.0,0.00199999]
[1724852543591,0.1,60106.0,60074.0,0.57003631]
[1724852543592,0.065,60100.0,60081.0,0.00199999]
[1724852543836,0.065,60100.0,60099.0,0.166392]
[1724852544057,0.065,60100.0,60099.0,0.499176]
[1724852544286,0.065,60100.0,60088.0,0.005]
[1724852544500,0.332706,60114.0,60100.0,0.499167]
[1724852544721,0.16636,60111.0,60100.0,0.831945]
[1724852544937,0.332706,60114.0,60100.0,0.831945]
[1724852545142,0.332687,60117.0,60100.0,0.831945]
[1724852545365,0.0004,60119.0,60100.0,1.49950099]
[1724852545599,0.0004,60119.0,60099.0,0.0765]
[1724852545810,0.0004,60119.0,60118.0,0.831697]
[1724852546240,0.0004,60119.0,60118.0,1.164376]
[1724852547140,0.0004,60119.0,60118.0,0.831697]
[1724852547361,0.0004,60119.0,60118.0,0.166339]
[1724852547584,0.0004,60119.0,60118.0,0.513018]
[1724852548000,0.0004,60119.0,60118.0,1.178376]
[1724852548265,0.0004,60119.0,60118.0,0.845697]
[1724852548693,0.0004,60119.0,60118.0,0.180339]
[1724852548908,0.0004,60119.0,60118.0,0.166339]
[1724852549341,0.0004,60119.0,60118.0,0.845697]
[1724852549565,0.0004,60119.0,60118.0,0.513018]
[1724852549771,0.0004,60119.0,60118.0,0.499018]
[1724852550228,0.0004,60119.0,60118.0,0.513018]
[1724852550449,0.0004,60119.0,60118.0,0.180339]
[1724852550654,0.0004,60119.0,60118.0,0.831697]
[1724852551298,0.0004,60119.0,60118.0,0.499018]
[1724852551947,0.0004,60119.0,60118.0,0.845697]
[1724852552167,0.5,60130.0,60129.0,0.498927]
[1724852552377,0.5,60130.0,60122.0,0.332655]
[1724852552621,0.5,60130.0,60116.0,0.332684]
[1724852552851,0.5,60130.0,60114.0,0.0825]
[1724852552852,0.166312,60128.0,60120.0,0.332663]
[1724852553082,0.5,60130.0,60124.0,0.166321]
[1724852553317,0.5,60130.0,60121.0,0.33598626]
[1724852553318,0.332618,60129.0,60121.0,0.00332626]
[1724852553523,0.5,60130.0,60118.0,0.00332626]
[1724852553737,0.5,60130.0,60117.0,0.04936166]
[1724852553738,0.5,60130.0,60125.0,0.166319]
[1724852553964,0.166315,60127.0,60122.0,0.172326]
[1724852554179,0.5,60130.0,60122.0,0.006]
[1724852554413,0.5,60130.0,60129.0,0.498927]
[1724852554685,0.5,60130.0,60129.0,0.831545]
[1724852555546,0.5,60130.0,60129.0,0.498927]
[1724852556186,0.5,60130.0,60129.0,0.845545]
[1724852556603,0.5,60130.0,60129.0,0.831545]
[1724852557036,0.5,60130.0,60129.0,1.178163]
[1724852558377,0.5,60130.0,60129.0,1.164163]
[1724852558596,0.5,60130.0,60129.0,0.831545]
[1724852558822,0.5,60130.0,60116.0,0.0784]
[1724852558823,0.0607,60129.0,60116.0,0.0784]
[1724852559089,0.5,60130.0,60112.0,0.50540786]
[1724852559306,0.5,60130.0,60129.0,0.014]
[1724852559514,0.998918,60130.0,60129.0,0.014]
[1724852559734,0.998918,60130.0,60111.0,0.0784]
[1724852559735,0.52607392,60130.0,60111.0,0.0784]
[1724852559962,0.52607392,60130.0,60116.0,0.166343]
[1724852560188,0.166339,60118.0,60109.0,0.332727]
[1724852560413,0.166339,60118.0,60111.0,0.166358]
[1724852560414,0.499018,60118.0,60111.0,0.166358]
[1724852560622,0.0759,60129.0,60123.0,0.166323]
[1724852560928,0.5,60130.0,60127.0,0.166313]
[1724852561105,0.5,60130.0,60124.0,0.166322]
[1724852561106,0.16631,60129.0,60124.0,0.166322]
[1724852561334,0.16631,60129.0,60117.0,0.01732643]
[1724852561335,0.02607415,60128.0,60119.0,0.166334]
[1724852561580,0.166327,60123.0,60119.0,0.166335]
[1724852561812,0.166335,60120.0,60116.0,0.04979501]
[1724852562040,0.02607415,60128.0,60116.0,0.04979501]
[1724852562041,0.166342,60117.0,60116.0,0.04979501]
[1724852562299,0.01,60140.0,60111.0,0.166357]
[1724852562300,0.332657,60122.0,60117.0,0.014]
[1724852562511,0.332652,60123.0,60117.0,0.180341]
[1724852562940,0.16634,60118.0,60114.0,0.16635]
[1724852563164,0.02607547,60121.0,60112.0,0.166354]
[1724852563369,0.02607547,60121.0,60110.0,0.38243167]
[1724852563370,0.166342,60117.0,60113.0,0.166352]
[1724852563572,0.166342,60117.0,60110.0,0.38243167]
[1724852563573,0.166356,60112.0,60110.0,0.04971367]
[1724852563785,0.166344,60117.0,60116.0,0.014]
[1724852563988,0.08977547,60121.0,60116.0,0.014]
[1724852563989,0.166339,60118.0,60116.0,0.014]
[1724852564194,0.0637,60121.0,60116.0,0.014]
[1724852564195,0.19241925,60117.0,60116.0,0.014]
[1724852564400,0.02607725,60117.0,60116.0,0.014]
[1724852565050,0.02607725,60117.0,60114.0,0.166349]
[1724852565331,0.0637,60116.0,60104.0,0.04986618]
[1724852565564,0.0625,60125.0,60113.0,0.014]
[1724852565779,0.16635,60114.0,60113.0,0.014]
[1724852566009,0.0637,60124.0,60098.0,0.064]
[1724852566220,0.0625,60125.0,60114.0,0.014]
[1724852566221,0.02262,60123.0,60114.0,0.014]
[1724852566478,0.166347,60115.0,60114.0,0.014]
[1724852566704,0.005,60115.0,60114.0,0.014]
[1724852566937,0.649142,60115.0,60114.0,0.014]
[1724852567205,0.649142,60115.0,60087.0,0.3337457]
[1724852567206,0.1251,60101.0,60088.0,0.166422]
[1724852567429,0.1251,60101.0,60087.0,0.0008987]
[1724852567430,0.166389,60100.0,60099.0,0.50540786]
[1724852567655,0.1251,60101.0,60087.0,0.05077001]
[1724852567885,0.166421,60089.0,60087.0,0.05077001]
[1724852568118,0.166422,60088.0,60087.0,0.0008987]
[1724852568364,0.02608633,60098.0,60087.0,0.0008987]
[1724852568365,0.0637,60090.0,60087.0,0.0008987]
[1724852568586,0.499267,60088.0,60087.0,0.0008987]
[1724852569518,0.52635914,60088.0,60087.0,0.0118987]
[1724852569777,0.58815914,60088.0,60087.0,0.0118987]
[1724852569999,1.53783885,60088.0,60087.0,0.0118987]
[1724852570213,1.53983885,60088.0,60087.0,0.0118987]
[1724852571085,1.44754914,60088.0,60087.0,0.0118987]
[1724852571510,0.002,60083.0,60046.0,0.066749]
[1724852571727,0.499491,60061.0,60060.0,0.50540786]
[1724852571958,0.33306,60050.0,60035.0,0.58150786]
[1724852572196,0.11550921,60087.0,60026.0,0.008976]
[1724852572197,0.499774,60027.0,60026.0,0.008976]
[1724852572413,1.5025146,60027.0,60026.0,0.008976]
[1724852572635,0.727174,60027.0,60026.0,0.008976]
[1724852573092,1.39354,60027.0,60026.0,0.008976]
[1724852573323,1.083357,60027.0,60026.0,0.008976]
[1724852573541,1.10947362,60027.0,60026.0,0.008976]
[1724852574310,0.77629062,60027.0,60026.0,0.008976]
[1724852574541,0.42010762,60027.0,60026.0,0.008976]
[1724852574741,1.10947362,60027.0,60026.0,0.008976]
[1724852574916,0.77629062,60027.0,60026.0,0.008976]
[1724852575495,0.44310762,60027.0,60026.0,0.008976]
[1724852575700,0.77629062,60027.0,60026.0,0.008976]
[1724852575909,0.25351662,60027.0,60026.0,0.008976]
[1724852576109,0.75329062,60027.0,60026.0,0.008976]
[1724852576313,0.42010762,60027.0,60026.0,0.008976]
[1724852576524,0.02611662,60027.0,60026.0,0.17557]
[1724852576950,0.02611662,60027.0,60026.0,0.841946]
[1724852577170,0.02611662,60027.0,60026.0,1.175134]
[1724852577355,0.02611662,60027.0,60026.0,1.252134]
[1724852577565,0.04983834,60043.0,60026.0,0.085976]
[1724852577813,0.02611155,60035.0,60030.0,0.333164]
[1724852578029,0.02611155,60035.0,60027.0,0.333183]
[1724852578242,0.02611155,60035.0,60034.0,0.499716]
[1724852578428,0.02611155,60035.0,60034.0,0.83286]
[1724852578835,0.02611155,60035.0,60034.0,0.499716]
[1724852579485,0.02611155,60035.0,60026.0,0.085976]
[1724852579713,0.02611155,60035.0,60034.0,0.83286]
[1724852580135,0.0637,60058.0,60043.0,0.33309]
[1724852580352,0.166535,60048.0,60040.0,0.166554]
[1724852580569,0.02611013,60043.0,60042.0,0.16655]
[1724852580789,0.166501,60060.0,60054.0,0.166515]
[1724852581022,0.50540786,60059.0,60054.0,0.166515]
[1724852581260,0.0637,60065.0,60049.0,0.0785]
[1724852581479,0.16652,60053.0,60049.0,0.0785]
[1724852581696,0.166514,60055.0,60049.0,0.24453101]
[1724852581928,0.21596011,60065.0,60054.0,0.333029]
[1724852582141,0.21596011,60065.0,60049.0,0.07800201]
[1724852582142,0.50540786,60064.0,60049.0,0.07800201]
[1724852582359,0.166519,60054.0,60049.0,0.07800201]
[1724852582573,0.333016,60058.0,60041.0,0.0008976]
[1724852582778,0.166534,60048.0,60042.0,0.166548]
[1724852582993,0.333057,60050.0,60041.0,0.0008976]
[1724852583206,0.0642,60057.0,60041.0,0.0008976]
[1724852583437,0.02610715,60051.0,60041.0,0.0008976]
[1724852583663,0.02610715,60051.0,60050.0,0.832637]
[1724852583916,0.02610715,60051.0,60050.0,1.165692]
[1724852584154,0.0642,60078.0,60059.0,0.166502]
[1724852584385,0.0642,60078.0,60050.0,0.396755]
[1724852584386,0.332974,60065.0,60050.0,0.396755]
[1724852584608,0.02610178,60067.0,60050.0,0.396755]
[1724852584609,0.02610178,60067.0,60063.0,0.332981]
[1724852584833,0.0642,60078.0,60051.0,0.08642983]
[1724852584834,0.50540786,60074.0,60051.0,0.08642983]
[1724852585080,0.0642,60078.0,60051.0,0.08642983]
[1724852585081,0.02610091,60062.0,60061.0,0.499491]
[1724852585334,0.166486,60066.0,60061.0,0.166496]
[1724852585551,0.049836,60076.0,60051.0,0.0831]
[1724852585552,0.166472,60070.0,60064.0,0.166487]
[1724852585793,0.049836,60076.0,60059.0,0.333002]
[1724852585794,0.332934,60072.0,60059.0,0.333002]
[1724852586032,0.049836,60076.0,60061.0,0.166495]
[1724852586033,0.02610007,60065.0,60061.0,0.166495]
[1724852586542,0.02610007,60065.0,60057.0,0.00332983]
[1724852586771,0.02610007,60065.0,60051.0,0.0831]
[1724852587008,0.02610007,60065.0,60059.0,0.333002]
[1724852587227,0.02610007,60065.0,60051.0,0.416147]
[1724852587228,0.16649,60064.0,60051.0,0.0831]
[1724852587466,0.16649,60064.0,60060.0,0.166499]
[1724852587699,0.35907307,60065.0,60057.0,0.166507]
[1724852587936,0.166529,60050.0,60044.0,0.0784]
[1724852588206,0.1295,60064.0,60041.0,0.0008976]
[1724852588207,0.16655,60042.0,60041.0,0.0008976]
[1724852588446,0.49965,60042.0,60041.0,0.0008976]
[1724852588676,0.19265901,60042.0,60041.0,0.0008976]
[1724852589173,0.02610901,60042.0,60041.0,0.0008976]
[1724852589655,0.02610901,60042.0,60041.0,0.5005546]
[1724852589918,0.02610901,60042.0,60041.0,0.1674496]
[1724852590172,0.02610901,60042.0,60041.0,0.5005546]
[1724852590632,0.02610901,60042.0,60041.0,0.1674496]
[1724852590899,0.19265901,60042.0,60041.0,0.0008976]
[1724852591112,0.85885901,60042.0,60041.0,0.0008976]
[1724852591378,1.25565901,60042.0,60041.0,0.0008976]
[1724852591615,1.3796359,60042.0,60041.0,0.0008976]
[1724852591867,0.96065,60042.0,60041.0,0.0008976]
[1724852592083,0.0637,60042.0,60041.0,0.0008976]
[1724852592339,0.56415,60042.0,60041.0,0.0008976]
[1724852592565,0.89725,60042.0,60041.0,0.0008976]
[1724852592847,1.23035,60042.0,60041.0,0.0008976]
[1724852593057,0.89725,60042.0,60041.0,0.0008976]
[1724852593283,0.49965,60042.0,60041.0,0.0008976]
[1724852593511,0.0642,60049.0,60041.0,0.0008976]
[1724852593748,0.333067,60048.0,60041.0,0.0008976]
[1724852594001,0.166538,60047.0,60042.0,0.166549]
[1724852594236,0.1,60047.0,60042.0,0.166548]
[1724852594467,0.1,60047.0,60041.0,0.0008976]
[1724852594468,0.16654,60046.0,60041.0,0.0008976]
[1724852594702,0.19251291,60050.0,60041.0,0.0008976]
[1724852594946,0.12611291,60050.0,60041.0,0.0008976]
[1724852595169,0.02611291,60050.0,60049.0,0.16653]
[1724852595628,0.02611291,60050.0,60049.0,0.499591]
[1724852595860,0.000817,60053.0,60049.0,0.499591]
[1724852595861,0.000817,60053.0,60052.0,0.166522]
[1724852596086,0.000817,60053.0,60052.0,0.499566]
[1724852596331,0.000817,60053.0,60052.0,0.91221]
[1724852596606,0.000817,60053.0,60052.0,0.579166]
[1724852596828,0.000817,60053.0,60044.0,0.333087]
[1724852596829,0.000817,60053.0,60044.0,0.0754]
[1724852597053,0.166541,60045.0,60044.0,0.0754]
[1724852597331,0.33305,60051.0,60043.0,0.333094]
[1724852597332,0.166526,60051.0,60043.0,0.333094]
[1724852597557,0.000817,60053.0,60041.0,0.0008976]
[1724852597558,0.000817,60053.0,60045.0,0.333081]
[1724852597787,0.000817,60053.0,60052.0,0.499566]
[1724852597997,0.000817,60053.0,60052.0,0.166522]
[1724852598217,0.02692077,60053.0,60050.0,0.166525]
[1724852598431,0.02692077,60053.0,60050.0,0.166526]
[1724852598652,0.02692077,60053.0,60044.0,0.333086]
[1724852598870,0.02692077,60053.0,60050.0,0.166526]
[1724852599082,0.02692077,60053.0,60046.0,0.333077]
[1724852599083,0.02692077,60053.0,60048.0,0.166531]
[1724852599292,0.166524,60052.0,60046.0,0.166537]
[1724852599505,0.02692077,60053.0,60049.0,0.166529]
[1724852599721,0.35996077,60053.0,60041.0,0.0008976]
[1724852599941,0.02692077,60053.0,60041.0,0.0008976]
[1724852600159,0.02692077,60053.0,60042.0,0.00333054]
[1724852600441,0.02692077,60053.0,60046.0,0.333074]
[1724852600658,0.02692077,60053.0,60042.0,0.333096]
[1724852601095,0.02692077,60053.0,60041.0,0.0008976]
[1724852601096,0.333045,60052.0,60041.0,0.0008976]
[1724852601300,0.02692077,60053.0,60041.0,0.0008976]
[1724852601301,0.333059,60050.0,60041.0,0.1674486]
[1724852601520,0.333068,60048.0,60041.0,0.0008976]
[1724852601736,0.0623,60051.0,60041.0,0.0008976]
[1724852601737,0.16655,60042.0,60041.0,0.0008976]
[1724852601947,0.0642,60049.0,60041.0,0.0008976]
[1724852602162,0.0623,60051.0,60041.0,0.0008976]
[1724852602383,0.000817,60053.0,60052.0,0.166522]
[1724852602601,0.000817,60053.0,60047.0,0.0603]
[1724852602814,0.02610648,60050.0,60049.0,0.16653]
[1724852603037,0.02610648,60050.0,60049.0,0.499591]